[Event "DSAM Bad Wildungen 2024"]
[Site "Bad Wildungen"]
[Date "2024.08.03"]
[Round "5.23"]
[White "Boldt, Timo"]
[Black "Roenker, Sebastian"]
[Result "1-0"]
[Annotator "NA"]
[ECO "A20"]
[WhiteElo "1801"]
[BlackElo "1851"]
[PlyCount "97"]
[EventDate "2024.07.31"]
[EventCountry "GER"]
[SourceTitle "playchess.com"]
[Source "ChessBase"]
[SourceQuality "1"]
[TimeControl "40/5400+30:900+30"]

1. c4 {[%emt 0:00:03]} Nf6 {[%emt 0:00:07]} 2. g3 {[%emt 0:00:10]} e5 {[%emt 0:03:51]} 3. Bg2 {[%emt 0:00:55]} Bc5 {[%emt 0:07:44]} 4. e3 {[%emt 0:00:40]} d5 {[%emt 0:06:21]} 5. cxd5 {[%emt 0:00:46]} Nxd5 {[%emt 0:04:06]} 6. Nc3 {[%emt 0:00:20]} Nxc3 {[%emt 0:00:29]} 7. bxc3 {[%emt 0:00:14]} O-O {[%emt 0:05:24]} 8. d4 {[%emt 0:00:58]} exd4 {[%emt 0:02:10]} 9. cxd4 {[%emt 0:00:10]} Bb4+ {[%emt 0:01:53]} 10. Bd2 {[%emt 0:00:08]} Be7 {[%emt 0:09:07]} 11. Ne2 {[%emt 0:06:39]} c6 {[%emt 0:03:21]} 12. O-O {[%emt 0:04:49]} Bg4 {[%emt 0:01:16]} 13. Re1 {[%emt 0:03:44]} Na6 {[%emt 0:03:39]} 14. Qa4 {[%emt 0:04:11]} Qc8 {[%emt 0:06:35]} 15. Nc3 {[%emt 0:05:12]} b5 {[%emt 0:04:10]} 16. Qb3 {[%emt 0:04:22]} Rb8 {[%emt 0:02:16]} 17. Rec1 {[%emt 0:10:38]} c5 {[%emt 0:13:57]} 18. dxc5 {[%emt 0:15:13]} Nxc5 {[%emt 0:02:14]} 19. Qc2 {[%emt 0:01:55]} Qd7 {[%emt 0:04:42]} 20. Nd5 {[%emt 0:02:57]} Bd6 {[%emt 0:06:37]} 21. Bb4 {[%emt 0:05:34]} Bf5 {[%emt 0:02:30]} 22. e4 {[%emt 0:02:05]} Bxe4 {[%emt 0:02:32]} 23. Bxe4 {[%emt 0:00:21]} Nxe4 {[%emt 0:00:17]} 24. Qxe4 {[%emt 0:00:18]} Bxb4 {[%emt 0:00:16]} 25. Nxb4 {[%emt 0:00:11]} Rfe8 {[%emt 0:01:19]} 26. Qd5 {[%emt 0:01:40]} Qxd5 {[%emt 0:02:18]} 27. Nxd5 {[%emt 0:00:09]} Rbd8 {[%emt 0:00:14]} 28. Nc7 {[%emt 0:00:48]} Re5 {[%emt 0:01:11]} 29. Rab1 {[%emt 0:00:43]} Re2 {[%emt 0:01:37]} 30. a3 {[%emt 0:01:41]} Rdd2 {[%emt 0:01:42]} 31. Nxb5 {[%emt 0:00:32]} g6 {[%emt 0:00:15]} 32. Rf1 {[%emt 0:03:20]} a6 {[%emt 0:00:29]} 33. Nc3 {[%emt 0:00:36]} Re5 {[%emt 0:00:28]} 34. Rfe1 {[%emt 0:04:30]} Ra5 {[%emt 0:00:40]} 35. a4 {[%emt 0:01:10]} Rc2 {[%emt 0:00:35]} 36. Rec1 {[%emt 0:01:38]} Rd2 {[%emt 0:00:25]} 37. Rb6 {[%emt 0:01:47]} Rf5 {[%emt 0:00:54]} 38. Rf1 {[%emt 0:03:41]} Rc2 {[%emt 0:00:54]} 39. Ne4 {[%emt 0:00:09]} a5 {[%emt 0:00:36]} 40. Rb5 {[%emt 0:02:03]} Ra2 {[%emt 0:00:39]} 41. Rxf5 {[%emt 0:16:22]} gxf5 {[%emt 0:00:53]} 42. Nc5 {[%emt 0:00:00]} Re2 {[%emt 0:02:39]} 43. Rb1 {[%emt 0:00:00]} Kg7 {[%emt 0:01:36]} 44. Rb5 {[%emt 0:00:00]} Kg6 {[%emt 0:00:22]} 45. Rxa5 {[%emt 0:00:00]} Kg5 {[%emt 0:00:10]} 46. Kg2 {[%emt 0:00:00]} h5 {[%emt 0:01:00]} 47. h4+ {[%emt 0:00:00]} Kg4 {[%emt 0:00:28]} 48. Nd7 {[%emt 0:00:00]} Re6 {[%emt 0:02:28]} 49. f3# {[%emt 0:16:38]} 1-0

[Event "DSAM Bad Wildungen 2024"]
[Site "Bad Wildungen"]
[Date "2024.08.03"]
[Round "5.24"]
[White "Frisch, Thomas"]
[Black "Dorendorf, Mika"]
[Result "1/2-1/2"]
[Annotator "ChessBase"]
[ECO "D02"]
[WhiteElo "1792"]
[BlackElo "1959"]
[PlyCount "44"]
[EventDate "2024.07.31"]
[EventCountry "GER"]
[SourceTitle "playchess.com"]
[Source "ChessBase"]
[SourceQuality "1"]
[TimeControl "40/5400+30:900+30"]

1. d4 {[%emt 0:00:03]} d5 {[%emt 0:00:03]} 2. Nf3 {[%emt 0:00:06]} Nf6 {[%emt 0:00:03]} 3. Bf4 {[%emt 0:00:09]} c5 {[%emt 0:00:24]} 4. e3 {[%emt 0:00:09]} Nc6 {[%emt 0:00:04]} 5. Nbd2 {[%emt 0:01:06]} Bf5 {[%emt 0:00:48]} 6. dxc5 {[%emt 0:10:58]} e6 {[%emt 0:01:01]} 7. Bd3 {[%emt 0:02:52]} Bg4 {[%emt 0:03:27]} 8. h3 {[%emt 0:01:45]} Bh5 {[%emt 0:00:49]} 9. c3 {[%emt 0:10:14]} e5 {[%emt 0:00:52]} 10. g4 {[%emt 0:01:36]} Nxg4 {[%emt 0:04:25]} 11. hxg4 {[%emt 0:06:00]} Bxg4 {[%emt 0:00:10]} 12. Qa4 {[%emt 0:03:51]} Bd7 {[%emt 0:06:16]} 13. Bg5 {[%emt 0:02:46]} f6 {[%emt 0:00:06]} 14. Bg6+ {[%emt 0:01:12]} Ke7 {[%emt 0:02:02]} 15. Qb3 {[%emt 0:03:23]} fxg5 {[%emt 0:09:46]} 16. Qxd5 {[%emt 0:08:33]} Be8 {[%emt 0:05:57]} 17. Qxd8+ {[%emt 0:02:10]} Nxd8 {[%emt 0:00:20]} 18. Nxe5 {[%emt 0:03:15]} Kf6 {[%emt 0:01:44]} 19. Bxe8 {[%emt 0:00:24]} Kxe5 {[%emt 0:00:04]} 20. Ba4 {[%emt 0:01:59]} Bxc5 {[%emt 0:00:30]} 21. Bc2 {[%emt 0:00:37]} h5 {[%emt 0:01:27]} 22. O-O-O {[%emt 0:00:50]} h4 {[%emt 0:07:45]} 1/2-1/2

[Event "DSAM Bad Wildungen 2024"]
[Site "Bad Wildungen"]
[Date "2024.08.03"]
[Round "5.25"]
[White "Brixius, Dirk"]
[Black "Will, Jonas"]
[Result "1-0"]
[Annotator "NA"]
[ECO "D46"]
[WhiteElo "1809"]
[BlackElo "1868"]
[PlyCount "121"]
[EventDate "2024.07.31"]
[EventCountry "GER"]
[SourceTitle "playchess.com"]
[Source "ChessBase"]
[SourceQuality "1"]
[TimeControl "40/5400+30:900+30"]

1. d4 {[%emt 0:00:03]} e6 {[%emt 0:00:09]} 2. c4 {[%emt 0:00:30]} d5 {[%emt 0:00:52]} 3. Nc3 {[%emt 0:00:16]} Nf6 {[%emt 0:00:19]} 4. e3 {[%emt 0:00:56]} c6 {[%emt 0:01:55]} 5. Bd3 {[%emt 0:00:49]} dxc4 {[%emt 0:04:00]} 6. Bxc4 {[%emt 0:00:04]} Bd6 {[%emt 0:00:19]} 7. Nf3 {[%emt 0:03:11]} Nbd7 {[%emt 0:01:18]} 8. O-O {[%emt 0:00:53]} O-O {[%emt 0:00:55]} 9. e4 {[%emt 0:04:48]} Bc7 {[%emt 0:08:05]} 10. Bg5 {[%emt 0:04:50]} h6 {[%emt 0:00:21]} 11. Bh4 {[%emt 0:00:10]} Qe8 {[%emt 0:00:59]} 12. e5 {[%emt 0:03:12]} Nd5 {[%emt 0:01:05]} 13. Re1 {[%emt 0:01:24]} f6 {[%emt 0:14:51]} 14. a3 {[%emt 0:04:42]} fxe5 {[%emt 0:02:46]} 15. dxe5 {[%emt 0:10:35]} Qh5 {[%emt 0:09:14]} 16. Bg3 {[%emt 0:00:32]} N7b6 {[%emt 0:00:37]} 17. Bf1 {[%emt 0:05:36]} Nxc3 {[%emt 0:06:35]} 18. bxc3 {[%emt 0:00:03]} Nd5 {[%emt 0:00:09]} 19. c4 {[%emt 0:03:21]} Ne7 {[%emt 0:00:28]} 20. Nd4 {[%emt 0:05:03]} Qg6 {[%emt 0:05:27]} 21. Bd3 {[%emt 0:04:49]} Nf5 {[%emt 0:02:17]} 22. Rb1 {[%emt 0:05:27]} Bb6 {[%emt 0:01:07]} 23. Nxf5 {[%emt 0:05:02]} exf5 {[%emt 0:00:33]} 24. Kh1 {[%emt 0:01:36]} Be6 {[%emt 0:02:56]} 25. Qc2 {[%emt 0:01:49]} Rad8 {[%emt 0:05:15]} 26. f4 {[%emt 0:06:57]} Rd7 {[%emt 0:02:55]} 27. Rbd1 {[%emt 0:03:05]} Bd4 {[%emt 0:03:53]} 28. Be2 {[%emt 0:03:50]} c5 {[%emt 0:02:10]} 29. Rd3 {[%emt 0:01:16]} Qf7 {[%emt 0:05:03]} 30. Rf3 {[%emt 0:04:43]} Rfd8 {[%emt 0:00:54]} 31. Bh4 {[%emt 0:00:50]} Rb8 {[%emt 0:03:00]} 32. Rb1 {[%emt 0:04:25]} Qe8 {[%emt 0:03:53]} 33. Bd3 {[%emt 0:03:09]} Qh5 {[%emt 0:00:54]} 34. Rh3 {[%emt 0:01:40]} Qg4 {[%emt 0:02:42]} 35. Bg3 {[%emt 0:00:44]} Rbd8 {[%emt 0:02:25]} 36. Be2 {[%emt 0:00:50]} Qg6 {[%emt 0:00:16]} 37. Bh5 {[%emt 0:01:14]} Qh7 {[%emt 0:00:16]} 38. Bh4 {[%emt 0:00:48]} Rb8 {[%emt 0:02:14]} 39. Rg3 {[%emt 0:01:42]} Kh8 {[%emt 0:03:12]} 40. Bg6 {[%emt 0:00:36]} Qg8 {[%emt 0:00:18]} 41. Bxf5 {[%emt 0:15:48]} Bxf5 {[%emt 0:05:49]} 42. Qxf5 {[%emt 0:00:00]} Rf7 {[%emt 0:00:24]} 43. Qe4 {[%emt 0:00:00]} Bf2 {[%emt 0:01:16]} 44. e6 {[%emt 0:00:00]} Rff8 {[%emt 0:01:07]} 45. Rh3 {[%emt 0:00:00]} Bxh4 {[%emt 0:00:06]} 46. Rxh4 {[%emt 0:00:00]} Rfe8 {[%emt 0:00:42]} 47. f5 {[%emt 0:00:00]} Qf8 {[%emt 0:00:13]} 48. Qe5 {[%emt 0:00:00]} Kh7 {[%emt 0:01:01]} 49. g4 {[%emt 0:00:00]} Qe7 {[%emt 0:01:26]} 50. Rh5 {[%emt 0:01:48]} Rbd8 {[%emt 0:00:31]} 51. g5 {[%emt 0:01:04]} b6 {[%emt 0:00:56]} 52. Re1 {[%emt 0:00:37]} Rd4 {[%emt 0:00:44]} 53. gxh6 {[%emt 0:01:34]} Qb7+ {[%emt 0:00:16]} 54. Kg1 {[%emt 0:01:42]} Rg4+ {[%emt 0:08:42]} 55. Kf2 {[%emt 0:00:01]} gxh6 {[%emt 0:02:24]} 56. Qd5 {[%emt 0:01:56]} Qc7 {[%emt 0:00:12]} 57. Qd7+ {[%emt 0:00:27]} Qxd7 {[%emt 0:00:24]} 58. exd7 {[%emt 0:00:02]} Rd8 {[%emt 0:00:39]} 59. Re7+ {[%emt 0:00:14]} Rg7 {[%emt 0:00:01]} 60. f6 {[%emt 0:01:13]} Rxd7 {[%emt 0:01:08]} 61. Rxg7+ {[%emt 0:00:26]} 1-0

[Event "DSAM Bad Wildungen 2024"]
[Site "Bad Wildungen"]
[Date "2024.08.03"]
[Round "5.26"]
[White "Valean, David-Andrei"]
[Black "Franz, Niclas"]
[Result "1-0"]
[Annotator "NA"]
[ECO "D00"]
[WhiteElo "1762"]
[BlackElo "1877"]
[PlyCount "103"]
[EventDate "2024.07.31"]
[EventCountry "GER"]
[SourceTitle "playchess.com"]
[Source "ChessBase"]
[SourceQuality "1"]
[TimeControl "40/5400+30:900+30"]

1. d4 {[%emt 0:00:04]} Nf6 {[%emt 0:00:52]} 2. Nc3 {[%emt 0:00:10]} d5 {[%emt 0:01:06]} 3. Bf4 {[%emt 0:00:08]} c6 {[%emt 0:00:32]} 4. e3 {[%emt 0:00:08]} Bf5 {[%emt 0:06:02]} 5. f3 {[%emt 0:01:17]} Nbd7 {[%emt 0:02:00]} 6. g4 {[%emt 0:00:24]} Bg6 {[%emt 0:00:08]} 7. h4 {[%emt 0:00:09]} h6 {[%emt 0:02:24]} 8. Bd3 {[%emt 0:03:57]} Bxd3 {[%emt 0:01:22]} 9. Qxd3 {[%emt 0:00:07]} e6 {[%emt 0:00:33]} 10. Nge2 {[%emt 0:00:37]} Nb6 {[%emt 0:03:42]} 11. b3 {[%emt 0:16:01]} a6 {[%emt 0:07:57]} 12. Kf2 {[%emt 0:10:11]} Nfd7 {[%emt 0:13:00]} 13. e4 {[%emt 0:13:47]} Be7 {[%emt 0:03:07]} 14. Bg3 {[%emt 0:02:49]} g6 {[%emt 0:11:11]} 15. h5 {[%emt 0:04:33]} g5 {[%emt 0:00:49]} 16. Rad1 {[%emt 0:10:25]} Nf8 {[%emt 0:11:28]} 17. Kg2 {[%emt 0:13:26]} Rg8 {[%emt 0:01:49]} 18. Na4 {[%emt 0:08:07]} Nxa4 {[%emt 0:03:38]} 19. bxa4 {[%emt 0:00:07]} Bd6 {[%emt 0:00:57]} 20. Rb1 {[%emt 0:01:13]} Bxg3 {[%emt 0:00:42]} 21. Nxg3 {[%emt 0:00:01]} Qc7 {[%emt 0:00:14]} 22. Rb2 {[%emt 0:03:09]} Nd7 {[%emt 0:02:39]} 23. Rhb1 {[%emt 0:01:55]} b6 {[%emt 0:01:43]} 24. exd5 {[%emt 0:07:10]} cxd5 {[%emt 0:01:28]} 25. Qh7 {[%emt 0:00:19]} Ke7 {[%emt 0:00:56]} 26. Re1 {[%emt 0:02:16]} Kd6 {[%emt 0:14:52]} 27. Qxf7 {[%emt 0:00:47]} Qc3 {[%emt 0:03:34]} 28. Rxe6+ {[%emt 0:00:29]} Kc7 {[%emt 0:00:07]} 29. Rbxb6 {[%emt 0:00:23]} Qxc2+ {[%emt 0:02:30]} 30. Kh3 {[%emt 0:00:04]} Raf8 {[%emt 0:00:43]} 31. Rec6+ {[%emt 0:00:17]} Qxc6 {[%emt 0:00:08]} 32. Rxc6+ {[%emt 0:00:02]} Kxc6 {[%emt 0:00:12]} 33. Qe6+ {[%emt 0:00:06]} Kc7 {[%emt 0:00:29]} 34. Qxd5 {[%emt 0:00:34]} Rg7 {[%emt 0:01:30]} 35. Nf5 {[%emt 0:01:22]} Rgf7 {[%emt 0:00:45]} 36. Kg3 {[%emt 0:01:05]} Nf6 {[%emt 0:01:41]} 37. Qc5+ {[%emt 0:00:33]} Kb8 {[%emt 0:01:38]} 38. Qb6+ {[%emt 0:00:24]} Ka8 {[%emt 0:00:04]} 39. Qxa6+ {[%emt 0:00:14]} Kb8 {[%emt 0:00:04]} 40. Qb6+ {[%emt 0:00:31]} Ka8 {[%emt 0:00:07]} 41. Qc6+ {[%emt 0:01:34]} Ka7 {[%emt 0:02:58]} 42. Nxh6 {[%emt 0:01:25]} Nxh5+ {[%emt 0:02:28]} 43. gxh5 {[%emt 0:00:13]} Rf6 {[%emt 0:00:07]} 44. Qd5 {[%emt 0:00:49]} Kb8 {[%emt 0:01:36]} 45. Ng4 {[%emt 0:01:27]} Rf4 {[%emt 0:00:51]} 46. h6 {[%emt 0:01:47]} Kc7 {[%emt 0:00:37]} 47. h7 {[%emt 0:00:34]} Kb6 {[%emt 0:01:20]} 48. Ne5 {[%emt 0:01:24]} Rh8 {[%emt 0:03:00]} 49. Qc5+ {[%emt 0:00:43]} Ka6 {[%emt 0:01:07]} 50. Qb5+ {[%emt 0:00:12]} Ka7 {[%emt 0:00:09]} 51. Nc6+ {[%emt 0:00:07]} Ka8 {[%emt 0:00:09]} 52. Qa6# {[%emt 0:00:09]} 1-0

[Event "DSAM Bad Wildungen 2024"]
[Site "Bad Wildungen"]
[Date "2024.08.03"]
[Round "5.27"]
[White "Kraus, Linus"]
[Black "Degenhardt, Andreas"]
[Result "1/2-1/2"]
[Annotator "NA"]
[ECO "D02"]
[WhiteElo "1893"]
[BlackElo "1832"]
[PlyCount "61"]
[EventDate "2024.07.31"]
[EventCountry "GER"]
[SourceTitle "playchess.com"]
[Source "ChessBase"]
[SourceQuality "1"]
[TimeControl "40/5400+30:900+30"]

1. Nf3 {[%emt 0:00:13]} d5 {[%emt 0:00:05]} 2. g3 {[%emt 0:00:36]} Nf6 {[%emt 0:00:10]} 3. Bg2 {[%emt 0:00:09]} Nbd7 {[%emt 0:00:07]} 4. d4 {[%emt 0:00:58]} b5 {[%emt 0:00:54]} 5. a4 {[%emt 0:02:38]} b4 {[%emt 0:00:31]} 6. c4 {[%emt 0:00:53]} bxc3 {[%emt 0:03:51]} 7. Nxc3 {[%emt 0:00:18]} e6 {[%emt 0:01:01]} 8. O-O {[%emt 0:01:38]} c5 {[%emt 0:03:24]} 9. Bf4 {[%emt 0:02:43]} Ba6 {[%emt 0:09:33]} 10. Nb5 {[%emt 0:08:02]} Bxb5 {[%emt 0:04:09]} 11. axb5 {[%emt 0:00:07]} Qb6 {[%emt 0:01:27]} 12. Qa4 {[%emt 0:05:40]} Be7 {[%emt 0:18:15]} 13. Ne5 {[%emt 0:09:11]} Nxe5 {[%emt 0:02:06]} 14. Bxe5 {[%emt 0:00:49]} O-O {[%emt 0:02:40]} 15. Qa6 {[%emt 0:04:24]} Nd7 {[%emt 0:03:14]} 16. Qxb6 {[%emt 0:14:37]} axb6 {[%emt 0:01:18]} 17. b3 {[%emt 0:00:21]} f6 {[%emt 0:06:57]} 18. Bf4 {[%emt 0:04:33]} cxd4 {[%emt 0:01:23]} 19. Ra6 {[%emt 0:08:09]} Nc5 {[%emt 0:02:44]} 20. Rxb6 {[%emt 0:00:13]} g5 {[%emt 0:02:21]} 21. Bd6 {[%emt 0:03:28]} Bxd6 {[%emt 0:02:59]} 22. Rxd6 {[%emt 0:00:10]} Rab8 {[%emt 0:03:24]} 23. b4 {[%emt 0:00:50]} Ne4 {[%emt 0:01:02]} 24. Rxe6 {[%emt 0:00:12]} Kf7 {[%emt 0:01:05]} 25. Ra6 {[%emt 0:02:29]} Rxb5 {[%emt 0:00:42]} 26. Ra7+ {[%emt 0:02:39]} Kg6 {[%emt 0:03:41]} 27. Rb1 {[%emt 0:09:28]} Nc3 {[%emt 0:05:57]} 28. Rb2 {[%emt 0:00:12]} Rfb8 {[%emt 0:02:45]} 29. Bf3 {[%emt 0:07:46]} Rxb4 {[%emt 0:07:26]} 30. Rxb4 {[%emt 0:12:04]} Rxb4 {[%emt 0:10:19]} 31. Ra5 {[%emt 0:00:30]} 1/2-1/2

[Event "DSAM Bad Wildungen 2024"]
[Site "Bad Wildungen"]
[Date "2024.08.03"]
[Round "5.28"]
[White "Niemann, Silvio"]
[Black "Kubiak, Manfred"]
[Result "1/2-1/2"]
[Annotator "ChessBase"]
[ECO "B30"]
[WhiteElo "1904"]
[BlackElo "1902"]
[PlyCount "91"]
[EventDate "2024.07.31"]
[EventCountry "GER"]
[SourceTitle "playchess.com"]
[Source "ChessBase"]
[SourceQuality "1"]
[TimeControl "40/5400+30:900+30"]

1. e4 {[%emt 0:00:03]} c5 {[%emt 0:00:09]} 2. Nf3 {[%emt 0:00:07]} Nc6 {[%emt 0:00:11]} 3. c4 {[%emt 0:00:16]} e5 {[%emt 0:05:13]} 4. Nc3 {[%emt 0:00:13]} d6 {[%emt 0:00:35]} 5. h3 {[%emt 0:00:13]} f5 {[%emt 0:02:24]} 6. d3 {[%emt 0:00:06]} f4 {[%emt 0:05:39]} 7. Nd5 {[%emt 0:00:27]} Nf6 {[%emt 0:01:10]} 8. Bd2 {[%emt 0:00:58]} Nxd5 {[%emt 0:04:54]} 9. cxd5 {[%emt 0:00:49]} Ne7 {[%emt 0:04:46]} 10. b4 {[%emt 0:02:05]} b6 {[%emt 0:02:12]} 11. Qb3 {[%emt 0:03:03]} Ng6 {[%emt 0:05:40]} 12. Be2 {[%emt 0:01:43]} Be7 {[%emt 0:01:07]} 13. a4 {[%emt 0:00:57]} Bd7 {[%emt 0:01:44]} 14. O-O {[%emt 0:02:00]} O-O {[%emt 0:00:36]} 15. Rfc1 {[%emt 0:00:24]} Kh8 {[%emt 0:01:30]} 16. a5 {[%emt 0:02:10]} Nh4 {[%emt 0:01:17]} 17. bxc5 {[%emt 0:01:44]} bxc5 {[%emt 0:00:32]} 18. Rcb1 {[%emt 0:02:21]} Rb8 {[%emt 0:03:12]} 19. Qc2 {[%emt 0:02:21]} Qc7 {[%emt 0:10:02]} 20. Nxh4 {[%emt 0:02:18]} Bxh4 {[%emt 0:00:19]} 21. Bf3 {[%emt 0:03:14]} Rxb1+ {[%emt 0:02:28]} 22. Rxb1 {[%emt 0:00:29]} Rb8 {[%emt 0:00:34]} 23. Be1 {[%emt 0:01:11]} Rb5 {[%emt 0:03:02]} 24. Rxb5 {[%emt 0:01:22]} Bxb5 {[%emt 0:00:25]} 25. g3 {[%emt 0:01:36]} fxg3 {[%emt 0:01:05]} 26. fxg3 {[%emt 0:00:11]} Bf6 {[%emt 0:00:32]} 27. Kg2 {[%emt 0:00:58]} Qb7 {[%emt 0:05:15]} 28. Qb3 {[%emt 0:04:29]} Ba6 {[%emt 0:00:51]} 29. Qxb7 {[%emt 0:01:24]} Bxb7 {[%emt 0:00:02]} 30. h4 {[%emt 0:00:41]} Ba6 {[%emt 0:01:02]} 31. Be2 {[%emt 0:00:09]} Kg8 {[%emt 0:00:53]} 32. g4 {[%emt 0:00:45]} Kf8 {[%emt 0:01:27]} 33. Kg3 {[%emt 0:01:04]} Ke8 {[%emt 0:02:25]} 34. Bd2 {[%emt 0:00:08]} Bd8 {[%emt 0:00:39]} 35. g5 {[%emt 0:00:57]} g6 {[%emt 0:01:14]} 36. Kf2 {[%emt 0:03:03]} Bb5 {[%emt 0:01:55]} 37. Bf1 {[%emt 0:00:59]} Be7 {[%emt 0:02:47]} 38. Be2 {[%emt 0:03:49]} Kd8 {[%emt 0:00:38]} 39. Ke1 {[%emt 0:04:02]} Kc7 {[%emt 0:00:50]} 40. Kd1 {[%emt 0:00:50]} Bd7 {[%emt 0:07:53]} 41. Be1 {[%emt 0:18:38]} Kb7 {[%emt 0:17:11]} 42. Bd2 {[%emt 0:04:52]} Bd8 {[%emt 0:00:22]} 43. Be1 {[%emt 0:00:49]} Bb5 {[%emt 0:02:26]} 44. Kc2 {[%emt 0:00:39]} Ba4+ {[%emt 0:02:26]} 45. Kc1 {[%emt 0:00:52]} Bd7 {[%emt 0:02:25]} 46. Kb2 {[%emt 0:47:01]} 1/2-1/2

[Event "DSAM Bad Wildungen 2024"]
[Site "Bad Wildungen"]
[Date "2024.08.03"]
[Round "5.29"]
[White "Schulze-Bergcamen, Stefan"]
[Black "Best, Florian"]
[Result "1-0"]
[Annotator "ChessBase"]
[ECO "C02"]
[WhiteElo "2042"]
[BlackElo "1836"]
[PlyCount "39"]
[EventDate "2024.07.31"]
[EventCountry "GER"]
[SourceTitle "playchess.com"]
[Source "ChessBase"]
[SourceQuality "1"]
[TimeControl "40/5400+30:900+30"]

1. e4 {[%emt 0:00:05]} e6 {[%emt 0:00:04]} 2. d4 {[%emt 0:00:08]} d5 {[%emt 0:00:03]} 3. e5 {[%emt 0:00:13]} f5 {[%emt 0:00:15]} 4. g4 {[%emt 0:05:43]} fxg4 {[%emt 0:09:44]} 5. Qxg4 {[%emt 0:00:39]} g6 {[%emt 0:00:04]} 6. Bd3 {[%emt 0:03:12]} Nh6 {[%emt 0:01:04]} 7. Qh3 {[%emt 0:03:12]} Nf5 {[%emt 0:00:25]} 8. Bxf5 {[%emt 0:01:02]} exf5 {[%emt 0:00:06]} 9. Qg2 {[%emt 0:06:21]} c5 {[%emt 0:00:16]} 10. c3 {[%emt 0:03:29]} cxd4 {[%emt 0:03:53]} 11. cxd4 {[%emt 0:00:03]} Bb4+ {[%emt 0:02:34]} 12. Nc3 {[%emt 0:01:15]} Nc6 {[%emt 0:01:14]} 13. Nge2 {[%emt 0:03:35]} Qa5 {[%emt 0:00:37]} 14. O-O {[%emt 0:11:30]} Bxc3 {[%emt 0:00:14]} 15. bxc3 {[%emt 0:00:26]} Bd7 {[%emt 0:04:00]} 16. Bg5 {[%emt 0:07:41]} Kf7 {[%emt 0:00:42]} 17. Nf4 {[%emt 0:03:47]} h6 {[%emt 0:00:43]} 18. Bf6 {[%emt 0:09:39]} g5 {[%emt 0:04:03]} 19. Bxh8 {[%emt 0:01:49]} Rxh8 {[%emt 0:00:44]} 20. Qxd5+ {[%emt 0:01:15]} 1-0

[Event "DSAM Bad Wildungen 2024"]
[Site "Bad Wildungen"]
[Date "2024.08.03"]
[Round "5.30"]
[White "Sviridov, Vitaliy"]
[Black "Krueger, Malte"]
[Result "1/2-1/2"]
[Annotator "NA"]
[ECO "A45"]
[WhiteElo "1771"]
[BlackElo "1739"]
[PlyCount "51"]
[EventDate "2024.07.31"]
[EventCountry "GER"]
[SourceTitle "playchess.com"]
[Source "ChessBase"]
[SourceQuality "1"]
[TimeControl "40/5400+30:900+30"]

1. d4 {[%emt 0:00:02]} Nf6 {[%emt 0:00:07]} 2. Bf4 {[%emt 0:00:03]} c6 {[%emt 0:00:06]} 3. e3 {[%emt 0:01:35]} Qb6 {[%emt 0:01:29]} 4. b3 {[%emt 0:00:58]} d6 {[%emt 0:00:44]} 5. h3 {[%emt 0:00:37]} Bf5 {[%emt 0:03:11]} 6. Bd3 {[%emt 0:00:19]} Nbd7 {[%emt 0:05:57]} 7. Nf3 {[%emt 0:01:24]} Bxd3 {[%emt 0:02:05]} 8. Qxd3 {[%emt 0:00:04]} Qc7 {[%emt 0:07:06]} 9. Bh2 {[%emt 0:01:14]} e5 {[%emt 0:03:24]} 10. Nbd2 {[%emt 0:05:49]} O-O-O {[%emt 0:05:21]} 11. O-O {[%emt 0:01:57]} h6 {[%emt 0:07:44]} 12. c4 {[%emt 0:06:28]} Re8 {[%emt 0:08:23]} 13. dxe5 {[%emt 0:07:02]} Nxe5 {[%emt 0:02:19]} 14. Qc3 {[%emt 0:04:23]} g5 {[%emt 0:06:11]} 15. Rfd1 {[%emt 0:07:40]} g4 {[%emt 0:06:28]} 16. hxg4 {[%emt 0:09:07]} Nfxg4 {[%emt 0:01:19]} 17. Nxe5 {[%emt 0:00:59]} Bg7 {[%emt 0:03:25]} 18. Bg3 {[%emt 0:07:15]} Bxe5 {[%emt 0:00:45]} 19. Bxe5 {[%emt 0:00:15]} dxe5 {[%emt 0:00:38]} 20. Ne4 {[%emt 0:02:02]} Re6 {[%emt 0:04:39]} 21. c5 {[%emt 0:07:35]} Rg8 {[%emt 0:06:45]} 22. Nd6+ {[%emt 0:08:47]} Kb8 {[%emt 0:00:08]} 23. f3 {[%emt 0:01:47]} Nf6 {[%emt 0:00:30]} 24. Rd2 {[%emt 0:00:18]} Nd5 {[%emt 0:01:40]} 25. Qd3 {[%emt 0:01:38]} Reg6 {[%emt 0:01:19]} 26. Re1 {[%emt 0:24:12]} 1/2-1/2

[Event "DSAM Bad Wildungen 2024"]
[Site "Bad Wildungen"]
[Date "2024.08.03"]
[Round "5.31"]
[White "Hoefle, Jan"]
[Black "Sander, Manuel"]
[Result "1-0"]
[Annotator "NA"]
[ECO "B06"]
[WhiteElo "1765"]
[BlackElo "1695"]
[PlyCount "87"]
[EventDate "2024.07.31"]
[EventCountry "GER"]
[SourceTitle "playchess.com"]
[Source "ChessBase"]
[SourceQuality "1"]
[TimeControl "40/5400+30:900+30"]

1. e4 {[%emt 0:00:04]} g6 {[%emt 0:00:05]} 2. d4 {[%emt 0:00:07]} Bg7 {[%emt 0:00:05]} 3. Nf3 {[%emt 0:00:19]} d6 {[%emt 0:00:08]} 4. Be3 {[%emt 0:00:51]} Nf6 {[%emt 0:00:27]} 5. Nbd2 {[%emt 0:00:42]} b6 {[%emt 0:01:53]} 6. c3 {[%emt 0:03:34]} Bb7 {[%emt 0:00:55]} 7. e5 {[%emt 0:01:59]} Nd5 {[%emt 0:02:13]} 8. Bg5 {[%emt 0:01:07]} dxe5 {[%emt 0:05:57]} 9. dxe5 {[%emt 0:00:21]} h6 {[%emt 0:01:30]} 10. Bh4 {[%emt 0:00:29]} Nc6 {[%emt 0:05:51]} 11. Qa4 {[%emt 0:01:54]} O-O {[%emt 0:00:54]} 12. e6 {[%emt 0:00:41]} fxe6 {[%emt 0:02:31]} 13. Qe4 {[%emt 0:01:29]} Nf4 {[%emt 0:07:36]} 14. Bg3 {[%emt 0:01:44]} Qd5 {[%emt 0:09:58]} 15. Qc2 {[%emt 0:03:06]} Ne5 {[%emt 0:04:02]} 16. Bxf4 {[%emt 0:01:49]} Rxf4 {[%emt 0:00:50]} 17. O-O-O {[%emt 0:08:17]} Nxf3 {[%emt 0:05:41]} 18. gxf3 {[%emt 0:00:14]} Qh5 {[%emt 0:09:40]} 19. Bd3 {[%emt 0:02:44]} Bxf3 {[%emt 0:01:35]} 20. Nxf3 {[%emt 0:01:04]} Qxf3 {[%emt 0:00:33]} 21. Bxg6 {[%emt 0:00:53]} Qxf2 {[%emt 0:00:25]} 22. Qb3 {[%emt 0:01:18]} Rf6 {[%emt 0:01:34]} 23. Bc2 {[%emt 0:02:17]} Raf8 {[%emt 0:01:27]} 24. Rhe1 {[%emt 0:04:33]} Qf4+ {[%emt 0:03:10]} 25. Kb1 {[%emt 0:02:33]} Qg4 {[%emt 0:00:43]} 26. Re4 {[%emt 0:02:27]} Qh3 {[%emt 0:01:24]} 27. Rde1 {[%emt 0:02:10]} Kh8 {[%emt 0:02:09]} 28. a3 {[%emt 0:09:36]} Qxh2 {[%emt 0:07:27]} 29. Rxe6 {[%emt 0:01:00]} Rf2 {[%emt 0:03:53]} 30. Rxe7 {[%emt 0:01:30]} a5 {[%emt 0:01:05]} 31. Qa4 {[%emt 0:06:29]} R2f4 {[%emt 0:02:05]} 32. Qd7 {[%emt 0:02:25]} Rf1 {[%emt 0:03:17]} 33. Qd3 {[%emt 0:00:55]} Rxe1+ {[%emt 0:02:14]} 34. Rxe1 {[%emt 0:00:08]} Kg8 {[%emt 0:00:12]} 35. Re7 {[%emt 0:01:09]} Qg1+ {[%emt 0:02:56]} 36. Ka2 {[%emt 0:00:16]} Rf6 {[%emt 0:01:22]} 37. Qh7+ {[%emt 0:00:22]} Kf8 {[%emt 0:00:26]} 38. Qe4 {[%emt 0:02:06]} Kg8 {[%emt 0:02:34]} 39. Rxc7 {[%emt 0:03:04]} Qg3 {[%emt 0:01:54]} 40. Rc8+ {[%emt 0:06:15]} Rf8 {[%emt 0:00:31]} 41. Rc6 {[%emt 0:15:17]} Qe5 {[%emt 0:18:33]} 42. Qh7+ {[%emt 0:01:52]} Kf7 {[%emt 0:00:54]} 43. Bb3+ {[%emt 0:00:06]} Ke8 {[%emt 0:02:42]} 44. Re6+ {[%emt 0:00:05]} 1-0